bitfinex/quotes_ETHUSD_20250129
["timestamp","ask_amount","ask_price","bid_price","bid_amount"]
[1738173227709,0.14936323,3116.1,3115.6,2.54]
[1738173227909,0.14936323,3116.1,3115.6,5.74958]
[1738173228210,3.20912,3116.2,3115.7,3.20951]
[1738173228211,0.14936323,3116.0,3115.7,3.20951]
[1738173228511,0.14936323,3116.0,3115.7,3.99261]
[1738173228676,0.14936323,3116.0,3115.8,38.20944]
[1738173229013,0.14936323,3116.0,3115.8,35.0]
[1738173229397,3.35862323,3116.0,3115.8,35.0]
[1738173229608,3.35862323,3116.0,3115.9,0.299]
[1738173229790,3.20941,3115.9,3115.7,0.299]
[1738173229990,0.14936323,3116.0,3115.7,0.299]
[1738173230188,0.14936323,3116.0,3115.7,35.299]
[1738173230509,0.14936323,3116.0,3115.7,0.299]
[1738173231012,3.35860323,3116.0,3115.7,0.299]
[1738173231210,3.20944,3115.9,3115.7,0.299]
[1738173231414,3.20955,3115.7,3115.6,2.54]
[1738173231914,3.20946,3115.8,3115.6,2.54]
[1738173232514,0.14936323,3115.7,3115.6,2.54]
[1738173234298,3.35891323,3115.7,3115.6,2.54]
[1738173234497,0.14936323,3115.7,3115.6,3.3147]
[1738173234702,0.14936323,3115.7,3115.6,2.54]
[1738173234901,3.35891323,3115.7,3115.6,2.54]
[1738173238113,0.14936323,3115.7,3115.6,2.54]
[1738173238813,0.14936323,3115.7,3115.6,3.3508]
[1738173239018,0.14936323,3115.7,3115.6,6.56045]
[1738173239414,0.14936323,3115.7,3115.6,41.56045]
[1738173239785,0.14936323,3115.7,3115.6,39.02045]
[1738173241303,0.14936323,3115.7,3115.6,35.8108]
[1738173241511,0.14936323,3115.7,3115.6,39.02045]
[1738173241834,0.14936323,3115.7,3115.6,39.02795]
[1738173243300,0.14936323,3115.7,3115.6,39.02045]
[1738173243504,0.14936323,3115.7,3115.6,36.1098]
[1738173243704,0.14936323,3115.7,3115.6,1.1098]
[1738173244023,0.14936323,3115.7,3115.6,0.299]
[1738173244611,0.14936323,3115.7,3115.1,3.2101]
[1738173244922,3.20957,3115.7,3115.6,0.299]
[1738173245426,3.2093,3116.0,3115.6,0.299]
[1738173245630,3.20909,3116.2,3115.7,0.8077]
[1738173245824,3.20909,3116.2,3115.7,7.22666]
[1738173246247,3.20909,3116.2,3115.7,0.8077]
[1738173246552,3.2092,3116.1,3115.7,0.8077]
[1738173247216,3.20899,3116.3,3115.8,3.20939]
[1738173247416,3.36899,3116.3,3115.8,3.20939]
[1738173247832,3.36899,3116.3,3115.7,0.8077]
[1738173248034,0.16,3116.3,3115.8,3.20944]
[1738173248238,0.16,3116.3,3115.9,3.20933]
[1738173249331,0.16,3116.3,3115.8,3.20944]
[1738173249657,0.16,3116.3,3115.8,3.20936]
[1738173250017,3.36894,3116.3,3115.8,3.20936]
[1738173251224,0.16,3116.3,3115.8,3.20936]
[1738173251430,0.16,3116.3,3115.9,3.20934]
[1738173251832,3.36896,3116.3,3115.7,4.01718]
[1738173252034,3.36896,3116.3,3115.7,7.22666]
[1738173252368,0.16,3116.3,3115.7,4.01718]
[1738173252548,0.16,3116.3,3115.9,3.20932]
[1738173252942,0.16,3116.3,3115.7,4.01718]
[1738173253128,3.20894,3116.3,3115.7,7.22663]
[1738173253330,3.20894,3116.3,3115.8,3.20942]
[1738173256279,3.36883,3116.4,3115.9,3.20933]
[1738173256657,3.20893,3116.3,3115.8,3.20942]
[1738173257032,6.41795,3116.3,3115.8,3.20942]
[1738173257333,3.20893,3116.3,3115.8,3.20942]
[1738173257744,3.20904,3116.2,3115.7,4.01725]
[1738173258163,3.20904,3116.2,3115.7,0.8077]
[1738173258370,0.7973,3116.1,3115.6,3.5086]
[1738173258532,3.20936,3115.9,3115.5,0.803]
[1738173258735,3.20936,3115.9,3115.6,0.299]
[1738173258937,3.20926,3116.0,3115.6,0.299]
[1738173259167,0.16,3115.9,3115.6,0.299]
[1738173259464,0.16,3115.9,3115.6,0.33109353]
[1738173259871,0.16,3115.9,3115.7,3.20946]
[1738173260371,0.16,3115.9,3115.8,4.01414]
[1738173265143,6.41758,3116.5,3115.9,3.20929]
[1738173265144,0.16,3116.4,3115.9,3.20929]
[1738173265684,0.16,3116.4,3116.2,3.20897]
[1738173265981,0.16,3116.4,3116.3,3.20893]
[1738173266381,0.16,3116.4,3116.2,3.20897]
[1738173266951,0.16,3116.4,3116.3,3.20893]
[1738173267154,0.16,3116.4,3116.0,3.20922]
[1738173267362,0.16,3116.4,3116.2,3.20902]
[1738173267877,0.16,3116.4,3116.0,3.610612]
[1738173268085,0.16,3116.4,3116.2,3.20902]
[1738173270062,0.16,3116.4,3116.0,3.20922]
[1738173270263,0.16,3116.4,3116.1,3.20911]
[1738173271016,0.16,3116.5,3116.1,3.20911]
[1738173272518,3.36872,3116.5,3116.1,3.20911]
[1738173273719,3.36872,3116.5,3116.2,0.299]
[1738173275216,0.16,3116.5,3116.2,3.50799]
[1738173275413,0.16,3116.5,3116.2,0.299]
[1738173275803,0.16,3116.5,3116.2,3.50799]
[1738173276345,0.16,3116.6,3116.3,3.20893]
[1738173276491,0.16,3116.6,3116.5,3.20872]
[1738173276694,3.36838,3116.9,3116.4,0.8183]
[1738173276910,0.16,3116.9,3116.5,3.20865]
[1738173277199,0.16,3116.9,3116.6,3.20862]
[1738173277409,0.16,3116.9,3116.5,3.20872]
[1738173278310,0.16,3116.9,3116.6,3.20861]
[1738173278519,0.16,3116.9,3116.6,3.20856]
[1738173278724,0.16,3116.9,3116.7,3.24052191]
[1738173278928,0.16,3116.8,3116.7,3.24810191]
[1738173279144,0.16,3117.2,3117.0,3.20812]
[1738173279502,0.16,3117.2,3117.1,0.03207814]
[1738173279738,0.16,3117.2,3117.0,3.20812]
[1738173279987,0.16,3117.2,3116.9,3.20826]
[1738173280145,0.16,3117.2,3116.8,4.00735]
[1738173280954,3.20826,3117.0,3116.9,0.298]
[1738173281110,0.16,3117.2,3116.9,0.298]
[1738173281310,0.16,3117.2,3117.1,3.20811]
[1738173281514,0.16,3117.2,3116.9,1.1054]
[1738173281515,0.16,3117.2,3116.9,4.31362]
[1738173282025,0.16,3117.2,3117.0,3.20821]
[1738173282950,0.16,3117.3,3117.0,3.20821]
[1738173283303,0.16,3117.3,3117.0,6.41634]
[1738173283552,0.16,3117.3,3116.9,1.1054]
[1738173283701,3.36796,3117.3,3116.6,3.20856]
[1738173283900,3.36796,3117.3,3116.5,0.8213]
[1738173283901,3.20827,3117.0,3116.7,0.298]
[1738173284501,3.20838,3116.9,3116.3,3.20887]
[1738173284702,3.20821,3117.0,3116.4,0.298]
[1738173284940,3.20837,3116.9,3116.4,0.298]
[1738173286230,3.20837,3116.9,3116.4,3.5068]
[1738173287020,3.20837,3116.9,3116.4,0.298]
[1738173287221,0.7764,3116.8,3116.4,0.298]
[1738173287990,0.7764,3116.8,3116.4,3.50682]
[1738173288986,0.16,3116.7,3116.4,3.50682]
[1738173289744,3.36852,3116.7,3116.4,0.298]
[1738173290200,0.16,3116.6,3116.4,0.298]
[1738173290391,3.943963,3116.6,3116.5,0.05520221]
[1738173290540,3.20863,3116.6,3116.5,0.05520221]
[1738173290739,3.98481,3116.8,3116.5,0.05520221]
[1738173290993,3.20853,3116.7,3116.5,0.05520221]
[1738173293495,0.7764,3116.8,3116.5,0.05520221]
[1738173293496,3.98484,3116.8,3116.5,0.05520221]
[1738173293693,4.02367,3117.1,3116.5,3.26384221]
[1738173293863,4.02367,3117.1,3116.8,3.20835]
[1738173293864,0.8155,3117.1,3116.8,3.20835]
[1738173294060,4.02331,3117.4,3116.9,3.20826]
[1738173294382,0.8155,3117.4,3117.1,3.20809]
[1738173294802,0.8155,3117.4,3116.9,3.20824]
[1738173295465,4.0233,3117.4,3116.9,3.20824]
[1738173295697,0.8155,3117.4,3116.8,3.20841]
[1738173295897,4.02331,3117.4,3116.8,3.20833]
[1738173296102,4.02331,3117.4,3116.9,3.2083]
[1738173296300,0.8155,3117.4,3116.8,3.20833]
[1738173296483,3.99666,3117.6,3116.9,0.37787347]
[1738173296664,3.99666,3117.6,3117.0,3.20815]
[1738173296997,3.99666,3117.6,3117.0,6.4163]
[1738173297403,3.99666,3117.6,3117.0,3.20815]
[1738173297738,3.2077,3117.5,3117.0,3.20815]
[1738173298223,6.41546,3117.5,3116.9,3.20825]
[1738173298529,3.2077,3117.5,3116.9,3.20825]
[1738173298663,3.2077,3117.5,3117.0,3.20814]
[1738173299679,3.2077,3117.5,3117.1,0.298]
[1738173300208,4.00788,3118.1,3117.6,3.20755]
[1738173300511,4.00782,3118.1,3117.6,3.20757]
[1738173300821,7.21496,3118.1,3117.5,3.20769]
[1738173300985,3.20724,3118.0,3117.4,6.41545]
[1738173301679,3.20724,3118.0,3117.5,3.20767]
[1738173302021,4.00782,3118.1,3117.5,3.20767]
[1738173302166,7.21497,3118.1,3117.5,3.20767]
[1738173302367,3.20718,3118.0,3117.5,3.20767]
[1738173303054,4.00782,3118.1,3117.2,0.7639]
[1738173303259,4.00782,3118.1,3117.6,3.20753]
[1738173303563,3.9935,3118.3,3117.7,4.00145]
[1738173303862,0.7866,3118.3,3117.8,3.2073]
[1738173304372,0.7866,3118.3,3117.8,6.41462]
[1738173304507,0.7866,3118.3,3117.8,3.2073]
[1738173305005,0.7866,3118.3,3117.9,3.20724]
[1738173306710,0.7866,3118.3,3117.9,38.20724]
[1738173308047,0.7866,3118.3,3117.9,3.20724]
[1738173308249,3.99348,3118.3,3117.7,4.00145]
[1738173308449,3.99348,3118.3,3117.7,39.00142]
[1738173308670,3.99348,3118.3,3117.8,3.20736]
[1738173310076,0.781,3119.1,3118.3,3.20686]
[1738173310250,3.20641,3118.8,3118.0,0.7638]
[1738173310452,3.20641,3118.8,3118.3,3.20686]
[1738173310815,0.781,3119.1,3118.3,0.03206579]
[1738173311014,0.781,3119.1,3118.6,3.20648]
[1738173311225,0.781,3119.1,3118.6,3.50448]
[1738173311726,6.41239,3119.0,3118.6,0.298]
[1738173312647,3.20645,3118.8,3118.6,0.298]
[1738173312846,3.99206,3118.7,3118.6,0.298]
[1738173313150,4.711911,3118.7,3118.6,0.298]
[1738173314126,3.99206,3118.7,3118.6,0.298]
[1738173317610,3.20668,3118.5,3118.3,35.0]
[1738173317868,3.2069,3118.3,3118.2,0.298]
[1738173318030,6.41384,3118.3,3118.0,0.298]
[1738173318543,3.2069,3118.3,3118.0,0.298]
[1738173318743,3.20703,3118.2,3118.0,0.298]
[1738173318949,3.60889,3118.3,3118.0,0.298]
[1738173319443,3.2069,3118.3,3118.0,0.298]
[1738173319868,3.207,3118.2,3118.0,0.298]
[1738173321265,0.813,3118.4,3117.6,0.808]
[1738173321266,6.41426,3118.1,3117.6,0.808]
[1738173321496,3.20731,3117.9,3117.7,0.298]
[1738173321654,3.20741,3117.8,3117.7,0.298]
[1738173321854,1.432226,3118.0,3117.7,0.298]
[1738173322054,3.2073,3117.9,3117.7,0.298]
[1738173322489,3.2073,3117.9,3117.5,35.0]
[1738173322691,3.2073,3117.9,3117.6,0.298]
[1738173323089,3.2073,3117.9,3117.5,35.0]
[1738173323389,3.20741,3117.8,3117.6,0.298]
[1738173323757,3.2073,3117.9,3117.6,0.298]
[1738173324886,3.9919646,3117.9,3117.6,0.298]
[1738173325127,3.20742,3117.8,3117.6,0.298]
[1738173325691,3.9919646,3117.9,3117.5,35.0]
[1738173325692,3.20759,3117.6,3117.5,35.0]
[1738173325998,3.20759,3117.6,3117.5,0.298]
[1738173326453,3.20741,3117.8,3117.5,0.298]
[1738173326796,3.20749,3117.7,3117.5,0.298]
[1738173327563,6.41487,3117.8,3117.5,0.298]
[1738173327767,3.20757,3117.7,3117.5,0.298]
[1738173329519,3.20729,3117.9,3117.5,3.50569]
[1738173329680,0.7908,3118.0,3117.5,3.50569]
[1738173329681,3.99804,3118.0,3117.5,3.50569]
[1738173330080,3.99804,3118.0,3117.6,35.0]
[1738173330537,7.20529,3118.0,3117.6,35.0]
[1738173330812,3.20729,3117.9,3117.6,35.0]
[1738173332712,0.7908,3118.0,3117.6,35.0]
[1738173333015,3.20709,3118.1,3117.6,35.8249]
[1738173333613,3.99753,3118.2,3117.6,35.8249]
[1738173333909,7.20457,3118.2,3117.7,3.20747]
[1738173334110,3.99753,3118.2,3117.7,3.20747]
[1738173334615,4.717966,3118.2,3117.8,35.0]
[1738173334786,3.20715,3118.1,3117.8,35.0]
[1738173336011,3.20715,3118.1,3117.6,4.03248]
[1738173336597,3.20715,3118.1,3117.6,0.8249]
[1738173336802,4.717966,3118.2,3117.6,0.8249]
[1738173336803,3.20719,3118.0,3117.6,0.8249]
[1738173337207,3.20719,3118.0,3117.5,38.50569]
[1738173337406,3.20719,3118.0,3117.5,3.50569]
[1738173338005,3.20742,3117.8,3117.5,0.298]
[1738173338206,4.02622,3117.8,3117.2,0.8003]
[1738173338406,4.02622,3117.8,3117.5,0.297]
[1738173338407,3.20761,3117.6,3117.5,0.297]
[1738173339015,3.20777,3117.5,3117.0,0.8003]
[1738173339203,3.20777,3117.5,3117.2,0.297]
[1738173339384,3.20777,3117.5,3117.1,0.297]
[1738173339584,3.20788,3117.4,3117.1,0.297]
[1738173340007,3.20791,3117.3,3117.1,0.297]
[1738173342118,3.20741,3117.8,3117.1,0.297]
[1738173342436,7.23776,3117.3,3116.7,4.01507]
[1738173342653,3.20811,3117.1,3117.0,0.297]
[1738173342818,3.2081,3117.2,3117.0,0.297]
[1738173342989,4.0297,3117.3,3117.0,0.297]
[1738173344188,3.2079,3117.3,3117.0,0.297]
[1738173345091,3.20801,3117.2,3117.0,0.297]
[1738173345345,3.20811,3117.1,3116.8,35.0]
[1738173345627,3.20852,3116.7,3116.6,0.297]
[1738173346489,3.20862,3116.6,3116.5,0.05520221]
[1738173346696,3.96332,3116.6,3116.5,0.05520221]
[1738173347251,4.51332,3116.6,3116.5,0.05520221]
[1738173347454,5.285504,3116.6,3116.5,0.05520221]
[1738173350084,5.91149674,3116.6,3116.5,0.05520221]
[1738173350286,8.91149674,3116.6,3116.5,0.05520221]
[1738173350763,8.91899674,3116.6,3116.5,2.21e-06]
[1738173350949,8.92649674,3116.6,3116.5,2.21e-06]
[1738173351797,0.0075,3116.1,3114.5,3.3497]
[1738173352002,3.21016,3115.1,3114.5,6.56047]
[1738173352197,3.21016,3115.1,3114.5,3.3497]
[1738173352542,3.21016,3115.1,3114.6,3.21066]
[1738173352747,3.21016,3115.1,3114.6,0.297]
[1738173353343,4.481156,3115.1,3114.5,2.54]
[1738173354786,3.931156,3115.1,3114.5,2.54]
[1738173356687,3.21016,3115.1,3114.6,0.8097]
[1738173357051,3.21016,3115.1,3115.0,0.1111199]
[1738173358492,3.21,3115.3,3115.0,0.1111199]
[1738173358663,0.1,3116.4,3115.0,0.1111199]
[1738173358664,0.7744,3115.4,3115.0,0.1111199]
[1738173358864,3.21016,3115.1,3115.0,0.1111199]
[1738173359799,3.59212067,3115.1,3115.0,0.1111199]
[1738173360002,3.21016,3115.1,3115.0,0.1111199]
[1738173361790,3.2101,3115.2,3115.0,0.1111199]
[1738173361991,1.4692553,3115.6,3115.0,0.1111199]
[1738173362181,3.0,3115.9,3115.0,0.1111199]
[1738173362182,3.20994,3115.4,3115.1,0.8176]
[1738173362523,0.8185,3115.9,3115.1,0.8176]
[1738173362680,3.20981,3115.5,3115.1,0.8176]
[1738173362880,3.20987,3115.4,3115.1,0.8176]
[1738173363116,1.221274,3115.9,3115.1,0.8176]
[1738173363314,3.20944,3115.8,3115.1,0.8176]
[1738173363516,0.8222,3115.8,3115.0,0.1111199]
[1738173363721,3.21009,3115.2,3115.0,0.1111199]
[1738173365196,3.20986,3115.4,3115.0,0.1111199]
[1738173365614,3.20998,3115.3,3115.0,0.1111199]
[1738173366197,3.20989,3115.4,3115.0,0.1111199]
[1738173367125,3.20942,3115.9,3115.0,3.73184689]
[1738173367291,3.20955,3115.7,3115.2,3.21005]
[1738173367639,3.20971,3115.6,3115.3,1.0768]
[1738173370625,0.7839,3116.1,3115.2,0.297]
[1738173370946,3.20973,3115.6,3115.2,0.297]
[1738173371113,3.20975,3115.5,3115.2,0.297]
[1738173371727,3.20987,3115.4,3115.2,0.297]
[1738173371937,3.20996,3115.3,3115.2,0.297]
[1738173372193,3.20987,3115.4,3115.2,0.297]
[1738173372427,3.20975,3115.5,3115.0,1.2321199]
[1738173372771,3.20998,3115.3,3115.0,1.2321199]
[1738173373340,6.4196,3115.5,3115.0,1.2321199]
[1738173374245,3.20986,3115.4,3115.0,1.2321199]
[1738173374557,3.21006,3115.3,3115.0,1.2321199]
[1738173376328,3.531046,3115.3,3115.0,0.1111199]
[1738173376518,3.21016,3115.1,3115.0,0.1111199]
[1738173377894,3.21013,3115.2,3115.0,0.1111199]
[1738173379090,3.21016,3115.1,3115.0,0.1111199]
[1738173379944,3.99506,3115.1,3115.0,0.1111199]
[1738173380112,5.2976796,3115.1,3115.0,0.1111199]
[1738173380993,5.3051796,3115.1,3115.0,0.1111199]
[1738173382010,8.933587,3115.1,3115.0,0.1111199]
[1738173384435,3.21109,3114.3,3113.8,3.6501]
[1738173384642,3.2111,3114.2,3113.8,3.6501]
[1738173385140,3.21109,3114.3,3113.8,6.8616]
[1738173385361,3.21109,3114.3,3113.8,3.6501]
[1738173385647,3.2111,3114.2,3113.8,3.6501]
[1738173386346,3.21109,3114.3,3113.8,3.6501]
[1738173387009,3.21111,3114.2,3113.8,3.6501]
[1738173387442,3.21109,3114.3,3113.8,3.6501]
[1738173387629,3.21109,3114.3,3113.8,6.86158]
[1738173387809,3.2109,3114.4,3113.9,3.21137]
[1738173389712,3.21099,3114.3,3113.9,3.21137]
[1738173390029,3.21099,3114.3,3113.8,1.1081]
[1738173390355,3.21083,3114.5,3113.9,3.21132]
[1738173390518,6.42169,3114.5,3113.9,3.21132]
[1738173390721,3.21083,3114.5,3113.9,3.21132]
[1738173391431,6.42171,3114.5,3113.9,3.21132]
[1738173391828,6.42171,3114.5,3113.9,3.16132]
[1738173392346,3.21083,3114.5,3113.9,3.16132]
[1738173392754,6.42168,3114.5,3113.9,3.16132]
[1738173392961,3.21116,3114.2,3113.8,1.1081]
[1738173395156,3.21122,3114.1,3113.8,1.1081]
[1738173395754,0.724388,3114.5,3113.8,1.1081]
[1738173396054,0.724388,3114.5,3112.5,7.25616733]
[1738173396055,3.21175,3113.6,3113.2,0.8007]
[1738173397061,3.21175,3113.6,3113.3,0.296]
[1738173397244,6.42353,3113.6,3113.3,0.296]
[1738173397564,3.21175,3113.6,3113.3,0.296]
[1738173397941,3.21189,3113.5,3113.3,0.296]
[1738173398146,3.212,3113.4,3113.0,0.8007]
[1738173398346,3.21198,3113.4,3113.1,0.296]
[1738173398682,3.21203,3113.3,3113.0,0.8007]
[1738173398998,3.21203,3113.3,3113.1,0.296]
[1738173399288,3.21185,3113.5,3113.1,0.296]
[1738173401031,6.42374,3113.5,3113.1,0.296]
[1738173401367,3.21185,3113.5,3113.1,0.296]
[1738173401558,3.21185,3113.5,3113.2,0.296]
[1738173402234,3.21202,3113.3,3113.2,0.296]
[1738173402466,0.642387,3113.3,3112.7,3.3215]
[1738173402775,3.21235,3113.0,3112.7,3.3215]
[1738173403072,3.21208,3113.3,3112.8,3.21254]
[1738173404088,6.42379,3113.5,3112.9,3.21242]
[1738173404235,3.21187,3113.5,3113.0,0.7836]
[1738173404435,3.21187,3113.5,3113.0,3.9959]
[1738173405176,3.18187,3113.5,3113.0,3.9959]
[1738173405683,3.18187,3113.5,3113.1,35.0]
[1738173407352,3.21147,3113.9,3113.4,0.7904]
[1738173407548,3.21147,3113.9,3113.2,0.03212023]
[1738173407549,3.21108,3114.3,3113.5,3.21181]
[1738173407899,3.21108,3114.3,3113.9,0.7506]
[1738173408029,0.321108,3114.2,3113.9,0.7506]
[1738173408236,6.42216,3114.3,3113.9,0.7506]
[1738173408459,6.42214,3114.3,3113.9,0.7506]
[1738173408671,3.21106,3114.3,3113.9,0.7506]
[1738173408848,6.42214,3114.3,3113.9,0.7506]
[1738173409369,3.21106,3114.3,3113.9,0.7506]
[1738173409574,3.21113,3114.2,3113.9,0.7506]
[1738173409779,3.21106,3114.3,3113.9,0.7506]
[1738173410078,3.2111,3114.2,3113.9,0.7506]
[1738173410440,3.21124,3114.1,3113.9,0.7506]
[1738173410854,3.21124,3114.1,3113.6,38.98112]
[1738173411253,3.21109,3114.3,3113.7,3.21155]
[1738173411449,3.21109,3114.3,3113.6,38.98112]
[1738173411450,3.21092,3114.4,3113.8,3.21144]
[1738173411654,1.284887,3114.8,3114.1,3.21111]
[1738173411655,4.495417,3114.8,3114.1,3.21111]
[1738173411857,4.495417,3114.8,3114.2,4.31653]
[1738173412061,1.284887,3114.8,3114.3,6.4539686]
[1738173412374,3.21061,3114.7,3114.2,1.1055]
[1738173412572,6.42129,3114.7,3114.2,1.1055]
[1738173412787,3.21061,3114.7,3114.2,4.31657]
[1738173413475,3.21061,3114.7,3114.2,1.1055]
[1738173413780,3.21069,3114.6,3114.2,1.1055]
[1738173414293,3.21084,3114.5,3114.3,0.296]
[1738173414449,3.21095,3114.4,3114.3,0.296]
[1738173418581,3.21078,3114.5,3114.3,0.296]
[1738173418786,6.42164,3114.5,3114.3,0.296]
[1738173418972,3.21089,3114.4,3114.3,0.296]
[1738173419562,3.21064,3114.7,3114.3,0.296]
[1738173419769,3.21079,3114.5,3114.3,0.296]
[1738173420681,6.42165,3114.5,3114.3,0.296]
[1738173420891,6.42165,3114.5,3111.1,2.07637975]
[1738173420892,0.7837,3114.3,3113.5,0.7936]
[1738173421196,3.99531,3113.7,3113.3,0.295]
[1738173421358,3.99534,3113.7,3113.3,0.295]
[1738173421558,3.21192,3113.4,3113.3,0.295]
[1738173421989,3.21187,3113.5,3113.3,0.295]
[1738173422180,3.21187,3113.5,3113.1,1.0886]
[1738173422589,3.21163,3113.7,3113.1,4.30076]
[1738173422759,3.21163,3113.7,3113.2,35.0]
[1738173422960,3.21171,3113.6,3113.2,35.0]
[1738173423160,3.21163,3113.7,3113.2,35.0]
[1738173424401,6.42331,3113.7,3113.2,35.0]
[1738173424599,3.21163,3113.7,3113.2,35.0]
[1738173424762,3.21163,3113.7,3113.2,38.21206]
[1738173425463,3.21172,3113.6,3113.2,35.0]
[1738173425670,3.21163,3113.7,3113.2,35.0]
[1738173426699,3.21163,3113.7,3113.2,38.21206]
[1738173427293,3.21174,3113.6,3113.3,0.295]
[1738173427609,3.21212,3113.2,3113.1,0.7936]
[1738173427921,3.21212,3113.2,3112.9,0.8333]
[1738173428106,3.21212,3113.2,3112.9,1.1283]
[1738173428470,3.21223,3113.1,3112.9,1.1283]
[1738173428674,3.21212,3113.2,3112.9,1.1283]
[1738173428885,3.21212,3113.2,3112.9,36.1283]
[1738173429604,3.21233,3113.0,3112.9,35.295]
[1738173430106,3.21233,3113.0,3112.9,35.0]
[1738173430507,3.21233,3113.0,3112.7,0.295]
[1738173431088,3.21233,3113.0,3112.7,35.295]
[1738173432274,3.21247,3112.9,3112.7,35.295]
[1738173433115,5.14496502,3113.5,3112.7,35.295]
[1738173433116,1.285399,3113.5,3112.7,36.1035]
[1738173433407,6.42359,3113.6,3113.1,0.8085]
[1738173433575,3.21179,3113.6,3113.1,0.8085]
[1738173433777,3.21177,3113.6,3113.1,0.8085]
[1738173434108,3.21182,3113.5,3113.1,0.8085]
[1738173434339,3.21202,3113.3,3113.2,0.295]
[1738173434542,4.00822,3113.3,3113.2,0.295]
[1738173435053,3.21244,3112.9,3112.7,35.0]
[1738173435348,3.21238,3113.0,3112.7,35.0]
[1738173435529,4.02384,3112.8,3112.7,35.0]
[1738173435705,0.8113,3112.8,3112.7,35.0]
[1738173435907,3.21254,3112.8,3112.7,35.0]
[1738173436605,3.21244,3112.9,3112.5,0.295]
[1738173436606,3.21265,3112.7,3112.5,0.295]
[1738173436803,6.42496,3112.9,3112.5,0.295]
[1738173437008,3.21256,3112.8,3112.6,35.0]
[1738173437422,3.21256,3112.8,3112.1,0.8057]
[1738173437423,3.85504,3112.8,3112.1,0.8057]
[1738173437746,3.85504,3112.8,3112.1,0.005]
[1738173437747,3.21316,3112.2,3112.1,0.005]
[1738173438151,0.812,3112.6,3112.1,0.005]
[1738173438152,3.21287,3112.5,3112.1,0.005]
[1738173438514,3.21295,3112.4,3112.1,0.005]
[1738173439325,3.21279,3112.6,3112.1,0.005]
[1738173439813,3.21279,3112.6,3112.0,4.27029]
[1738173440012,3.21293,3112.5,3112.0,1.057]
[1738173440233,3.21313,3112.3,3112.0,0.295]
[1738173440647,3.21313,3112.3,3111.9,0.1611199]
[1738173440648,3.21305,3112.3,3111.9,0.4561199]
[1738173440855,3.21336,3112.0,3111.9,0.1611199]
[1738173441552,4.02196,3112.0,3111.9,0.1611199]
[1738173441755,5.066807,3112.0,3111.9,0.1611199]
[1738173442064,5.616807,3112.0,3111.9,0.1611199]
[1738173442234,5.624307,3112.0,3111.9,0.1611199]
[1738173442633,8.631807,3112.0,3111.9,9.9e-06]
[1738173443174,8.631807,3112.0,3111.1,0.41666667]
[1738173443175,3.21419,3111.2,3111.1,0.41666667]
[1738173443329,4.289609,3111.2,3111.1,0.41666667]
[1738173443519,3.96819,3111.2,3111.1,0.41666667]
[1738173444855,3.2138,3111.6,3111.1,0.41666667]
[1738173445427,3.2138,3111.6,3111.1,0.36666667]
[1738173445649,3.21392,3111.5,3111.1,0.36666667]
[1738173446165,3.21401,3111.4,3111.1,0.36666667]
[1738173446461,3.21413,3111.3,3111.1,0.36666667]
[1738173447027,3.21419,3111.2,3111.1,0.36666667]
[1738173447360,4.68921,3111.2,3111.1,0.36666667]
[1738173448165,5.23921,3111.2,3111.1,0.36666667]
[1738173450337,5.24671,3111.2,3111.1,0.36666667]
[1738173450953,5.25421,3111.2,3111.1,0.36666667]
[1738173451152,5.25421,3111.2,3111.1,6.67e-06]
[1738173451531,8.88407912,3111.2,3111.1,6.67e-06]
[1738173453178,8.87657912,3111.2,3111.1,6.67e-06]
[1738173455264,8.86907912,3111.2,3111.1,6.67e-06]
[1738173456265,8.87657912,3111.2,3111.1,6.67e-06]
[1738173457150,8.31907912,3111.2,3111.1,6.67e-06]
[1738173457357,3.21401,3111.4,3111.1,6.67e-06]
[1738173457564,3.21381,3111.6,3111.1,6.67e-06]
[1738173457742,3.21363,3111.8,3111.2,3.21417]
[1738173457945,3.21363,3111.8,3111.2,3.21411]
[1738173458143,3.21363,3111.8,3111.3,3.21407]
[1738173458344,3.21336,3112.0,3111.5,3.21386]
[1738173458892,3.21336,3112.0,3111.4,0.8219]
[1738173459056,6.42682,3112.0,3111.4,4.03582]
[1738173459262,3.21347,3111.9,3111.4,4.03582]
[1738173459663,3.21336,3112.0,3111.4,4.03582]
[1738173460193,3.21336,3112.0,3111.4,0.8219]
[1738173460396,3.21352,3111.9,3111.4,0.8219]
[1738173461942,3.21352,3111.9,3111.4,35.8219]
[1738173463093,3.21352,3111.9,3111.4,39.03586]
[1738173463294,3.21325,3112.2,3111.6,3.21376]
[1738173463461,3.21299,3112.4,3112.0,0.7697]
[1738173463854,3.21289,3112.5,3112.0,0.7697]
[1738173464885,6.42582,3112.5,3112.0,0.7697]
[1738173465068,3.21289,3112.5,3112.0,0.7697]
[1738173465556,3.21269,3112.7,3112.1,3.21325]
[1738173465751,3.21248,3112.9,3112.1,3.21325]
[1738173465752,3.21248,3112.9,3112.2,3.21315]
[1738173465985,3.21259,3112.8,3112.2,3.21315]
[1738173466509,3.2124,3113.0,3112.3,3.24510873]
[1738173466803,3.21281,3112.6,3112.2,0.7525]
[1738173468997,6.42564,3112.6,3112.2,0.7525]
[1738173469202,3.21287,3112.5,3112.2,0.7525]